[Event "Betsys MČR v online bleskovém šachu 2021"]
[Site "Chess.com"]
[Date "2021.04.17"]
[Round "10"]
[White "Zavurka1975"]
[Black "machonza"]
[Result "0-1"]
[WhiteElo "2193"]
[BlackElo "2028"]
[TimeControl "180+1"]
[EndTime "10:41:04 PDT"]
[Termination "Uživatel machonza zvítězil na čas"]

1. d4 {[%clk 0:03:00.9]} 1... Nf6 {[%clk 0:02:58.6]} 2. Nf3 {[%clk 0:03:00.3]}
2... e6 {[%clk 0:02:56.2]} 3. e3 {[%clk 0:02:59.3]} 3... c5 {[%clk 0:02:54.8]}
4. Bd3 {[%clk 0:02:58]} 4... d5 {[%clk 0:02:50]} 5. c3 {[%clk 0:02:57.2]} 5...
Nc6 {[%clk 0:02:43.2]} 6. O-O {[%clk 0:02:55.4]} 6... Bd6 {[%clk 0:02:41.4]} 7.
dxc5 {[%clk 0:02:54.3]} 7... Bxc5 {[%clk 0:02:40.8]} 8. Nbd2 {[%clk 0:02:53.9]}
8... a5 {[%clk 0:02:38.8]} 9. e4 {[%clk 0:02:52.5]} 9... d4 {[%clk 0:02:37.4]}
10. Nb3 {[%clk 0:02:42.8]} 10... Bb6 {[%clk 0:02:27.7]} 11. Nbxd4 {[%clk
0:02:42.5]} 11... Bd7 {[%clk 0:02:21.7]} 12. e5 {[%clk 0:02:22.2]} 12... Nd5
{[%clk 0:02:15.6]} 13. Re1 {[%clk 0:02:18.3]} 13... h6 {[%clk 0:02:04.2]} 14.
Qe2 {[%clk 0:02:08.8]} 14... Qe7 {[%clk 0:02:01.6]} 15. Nb5 {[%clk 0:02:02.1]}
15... O-O-O {[%clk 0:01:53.8]} 16. a3 {[%clk 0:01:49.6]} 16... g5 {[%clk
0:01:46.4]} 17. c4 {[%clk 0:01:48.7]} 17... Nf4 {[%clk 0:01:45.4]} 18. Bxf4
{[%clk 0:01:39.8]} 18... gxf4 {[%clk 0:01:45.2]} 19. Rad1 {[%clk 0:01:25]} 19...
Rdg8 {[%clk 0:01:35.9]} 20. Be4 {[%clk 0:01:12.9]} 20... h5 {[%clk 0:01:28.6]}
21. Nd6+ {[%clk 0:00:57.4]} 21... Kb8 {[%clk 0:01:27.5]} 22. Qd2 {[%clk
0:00:51.7]} 22... Be8 {[%clk 0:01:13.8]} 23. Qxf4 {[%clk 0:00:49.4]} 23... Rg4
{[%clk 0:01:11.2]} 24. Qd2 {[%clk 0:00:39]} 24... Rhg8 {[%clk 0:01:07.7]} 25. g3
{[%clk 0:00:38.3]} 25... h4 {[%clk 0:01:06.5]} 26. Kf1 {[%clk 0:00:30.1]} 26...
hxg3 {[%clk 0:01:05.7]} 27. hxg3 {[%clk 0:00:30.1]} 27... Rh8 {[%clk 0:00:54]}
28. b4 {[%clk 0:00:28.8]} 28... f5 {[%clk 0:00:36.8]} 29. Bc2 {[%clk 0:00:13.7]}
29... f4 {[%clk 0:00:34.5]} 30. c5 {[%clk 0:00:12.8]} 30... Bc7 {[%clk
0:00:19.6]} 31. gxf4 {[%clk 0:00:11.8]} 31... Bh5 {[%clk 0:00:17.3]} 32. Be4
{[%clk 0:00:08.4]} 32... Rg7 {[%clk 0:00:14.1]} 33. Ke2 {[%clk 0:00:07.1]} 33...
Rf8 {[%clk 0:00:11.6]} 34. Rg1 {[%clk 0:00:05.5]} 34... Rxg1 {[%clk 0:00:09.5]}
35. Rxg1 {[%clk 0:00:05.4]} 35... Qh4 {[%clk 0:00:09]} 36. Qe3 {[%clk
0:00:04.1]} 36... Qxf4 {[%clk 0:00:07.8]} 37. b5 {[%clk 0:00:03.3]} 37... Bxf3+
{[%clk 0:00:05.2]} 38. Qxf3 {[%clk 0:00:02.3]} 38... Nd4+ {[%clk 0:00:04.6]} 0-1

[Event "Betsys MČR v online bleskovém šachu 2021"]
[Site "Chess.com"]
[Date "2021.04.17"]
[Round "10"]
[White "lupinek23"]
[Black "horalek"]
[Result "1-0"]
[WhiteElo "1597"]
[BlackElo "1330"]
[TimeControl "180+1"]
[EndTime "10:41:04 PDT"]
[Termination "Uživatel lupinek23 zvítězil na čas"]

1. e4 {[%clk 0:03:00.9]} 1... c6 {[%clk 0:02:57.2]} 2. Nf3 {[%clk 0:02:59.1]}
2... d5 {[%clk 0:02:56.8]} 3. exd5 {[%clk 0:02:58.1]} 3... cxd5 {[%clk
0:02:56.5]} 4. Nc3 {[%clk 0:02:57.7]} 4... Nf6 {[%clk 0:02:53.8]} 5. d4 {[%clk
0:02:56]} 5... Bg4 {[%clk 0:02:52]} 6. Bb5+ {[%clk 0:02:52.5]} 6... Nc6 {[%clk
0:02:48]} 7. O-O {[%clk 0:02:41.6]} 7... e6 {[%clk 0:02:43.8]} 8. h3 {[%clk
0:02:36.5]} 8... Bxf3 {[%clk 0:02:37.9]} 9. Qxf3 {[%clk 0:02:35.3]} 9... Be7
{[%clk 0:02:35.9]} 10. Re1 {[%clk 0:02:28.3]} 10... O-O {[%clk 0:02:34.5]} 11.
Bg5 {[%clk 0:02:25.5]} 11... Re8 {[%clk 0:02:31]} 12. Rad1 {[%clk 0:02:17.3]}
12... a6 {[%clk 0:02:30.3]} 13. Bxc6 {[%clk 0:02:16.2]} 13... bxc6 {[%clk
0:02:29]} 14. a3 {[%clk 0:02:16.4]} 14... h6 {[%clk 0:02:20]} 15. Bh4 {[%clk
0:02:14.5]} 15... Nd7 {[%clk 0:02:17]} 16. Bxe7 {[%clk 0:02:08.4]} 16... Qxe7
{[%clk 0:02:16.2]} 17. Ne2 {[%clk 0:02:06.5]} 17... Nb6 {[%clk 0:02:11.1]} 18.
Nf4 {[%clk 0:01:58.3]} 18... Qf6 {[%clk 0:02:03.8]} 19. Qg3 {[%clk 0:01:41.6]}
19... Nc4 {[%clk 0:01:57.1]} 20. Nh5 {[%clk 0:01:35.9]} 20... Qg6 {[%clk
0:01:51.6]} 21. Qxg6 {[%clk 0:01:31.4]} 21... fxg6 {[%clk 0:01:50.9]} 22. Nf4
{[%clk 0:01:31.4]} 22... Kf7 {[%clk 0:01:45.4]} 23. Nd3 {[%clk 0:01:20.6]} 23...
Rab8 {[%clk 0:01:33.9]} 24. b3 {[%clk 0:01:12.8]} 24... Nxa3 {[%clk 0:01:30.1]}
25. Ne5+ {[%clk 0:01:12.4]} 25... Kf8 {[%clk 0:01:20.8]} 26. Nxg6+ {[%clk
0:01:11.6]} 26... Kg8 {[%clk 0:01:14.7]} 27. Ne5 {[%clk 0:01:05.7]} 27... Nxc2
{[%clk 0:01:08.1]} 28. Re2 {[%clk 0:00:53.6]} 28... Nb4 {[%clk 0:01:03.4]} 29.
Rc1 {[%clk 0:00:46.7]} 29... Rbc8 {[%clk 0:00:56.8]} 30. Ng4 {[%clk 0:00:29.6]}
30... a5 {[%clk 0:00:46.5]} 31. Rce1 {[%clk 0:00:27.5]} 31... Nd3 {[%clk
0:00:39.1]} 32. Rd1 {[%clk 0:00:19.4]} 32... Nf4 {[%clk 0:00:34.8]} 33. Re5
{[%clk 0:00:17.4]} 33... Ng6 {[%clk 0:00:29.4]} 34. Ree1 {[%clk 0:00:16.3]}
34... Re7 {[%clk 0:00:23.4]} 35. Ra1 {[%clk 0:00:16]} 35... Ra8 {[%clk 0:00:21]}
36. b4 {[%clk 0:00:15.9]} 36... a4 {[%clk 0:00:17.5]} 37. Re2 {[%clk 0:00:15.9]}
37... Raa7 {[%clk 0:00:16.1]} 38. Rea2 {[%clk 0:00:14.3]} 38... Rab7 {[%clk
0:00:13.3]} 39. Rxa4 {[%clk 0:00:14.3]} 39... Nf4 {[%clk 0:00:09.6]} 40. Rb1
{[%clk 0:00:14.6]} 40... Ne2+ {[%clk 0:00:08.5]} 41. Kh2 {[%clk 0:00:13.6]}
41... Nxd4 {[%clk 0:00:07.9]} 42. Ra8+ {[%clk 0:00:12.7]} 42... Kf7 {[%clk
0:00:06.3]} 43. Ne3 {[%clk 0:00:12.7]} 1-0

[Event "Betsys MČR v online bleskovém šachu 2021"]
[Site "Chess.com"]
[Date "2021.04.17"]
[Round "10"]
[White "JakubPulpan"]
[Black "FormerProdigy"]
[Result "0-1"]
[WhiteElo "2711"]
[BlackElo "2867"]
[TimeControl "180+1"]
[EndTime "10:41:05 PDT"]
[Termination "Uživatel FormerProdigy zvítězil po vzdání soupeře"]

1. Nf3 {[%clk 0:03:00.9]} 1... Nf6 {[%clk 0:02:58.3]} 2. b3 {[%clk 0:03:01]}
2... d5 {[%clk 0:02:57.7]} 3. Bb2 {[%clk 0:03:01.3]} 3... c5 {[%clk 0:02:57.8]}
4. e3 {[%clk 0:03:01.5]} 4... g6 {[%clk 0:02:56.5]} 5. c4 {[%clk 0:02:58.4]}
5... dxc4 {[%clk 0:02:53.3]} 6. Bxc4 {[%clk 0:02:58.3]} 6... Bg7 {[%clk
0:02:54.2]} 7. O-O {[%clk 0:02:58.4]} 7... O-O {[%clk 0:02:53.9]} 8. h3 {[%clk
0:02:46.2]} 8... Nc6 {[%clk 0:02:49]} 9. d4 {[%clk 0:02:37.6]} 9... Ne4 {[%clk
0:02:35.7]} 10. Nbd2 {[%clk 0:01:56.9]} 10... Bf5 {[%clk 0:02:18.5]} 11. Nxe4
{[%clk 0:01:39.7]} 11... Bxe4 {[%clk 0:02:19.4]} 12. Ne5 {[%clk 0:01:18.1]}
12... cxd4 {[%clk 0:02:13.7]} 13. Nxc6 {[%clk 0:01:17.7]} 13... Bxc6 {[%clk
0:02:14.4]} 14. Bxd4 {[%clk 0:01:18.3]} 14... Bxd4 {[%clk 0:02:10.9]} 15. exd4
{[%clk 0:01:10.6]} 15... e6 {[%clk 0:02:10.7]} 16. Qd2 {[%clk 0:01:07.1]} 16...
Qf6 {[%clk 0:02:03.6]} 17. Rad1 {[%clk 0:00:57.5]} 17... Rad8 {[%clk 0:02:01.5]}
18. Qe3 {[%clk 0:00:50.3]} 18... Rd7 {[%clk 0:01:50.3]} 19. Be2 {[%clk 0:00:49]}
19... Rfd8 {[%clk 0:01:47.8]} 20. d5 {[%clk 0:00:49.2]} 20... Bxd5 {[%clk
0:01:23.8]} 21. Qxa7 {[%clk 0:00:39.1]} 21... Qg5 {[%clk 0:01:23.9]} 22. f3
{[%clk 0:00:32.9]} 22... Bc6 {[%clk 0:01:22.4]} 23. Qf2 {[%clk 0:00:20.5]} 23...
Rd2 {[%clk 0:01:19.6]} 24. a4 {[%clk 0:00:07.4]} 24... Qe5 {[%clk 0:01:03.3]}
25. Rxd2 {[%clk 0:00:05.9]} 25... Rxd2 {[%clk 0:01:04.2]} 26. Re1 {[%clk
0:00:06.6]} 26... Kg7 {[%clk 0:01:02.4]} 27. Kh1 {[%clk 0:00:05.5]} 27... Qc3
{[%clk 0:00:56.5]} 28. Qf1 {[%clk 0:00:03.4]} 28... Qxb3 {[%clk 0:00:54.6]} 29.
Bb5 {[%clk 0:00:03.5]} 29... Bxb5 {[%clk 0:00:52]} 30. axb5 {[%clk 0:00:03.4]}
30... Rb2 {[%clk 0:00:46.2]} 31. Rc1 {[%clk 0:00:02.7]} 31... Qxb5 {[%clk
0:00:45.5]} 32. Qe1 {[%clk 0:00:03.3]} 32... Qb4 {[%clk 0:00:43.7]} 33. Qe5+
{[%clk 0:00:03.4]} 33... Kh6 {[%clk 0:00:30.8]} 34. Qe3+ {[%clk 0:00:03.7]}
34... g5 {[%clk 0:00:30.3]} 35. Qe5 {[%clk 0:00:04]} 35... Kg6 {[%clk
0:00:26.7]} 36. Rc7 {[%clk 0:00:02.8]} 36... Rb1+ {[%clk 0:00:25.7]} 37. Kh2
{[%clk 0:00:03]} 37... Qf4+ {[%clk 0:00:26.6]} 38. Qxf4 {[%clk 0:00:03.4]} 38...
gxf4 {[%clk 0:00:27.5]} 39. Rc4 {[%clk 0:00:03.8]} 39... e5 {[%clk 0:00:26]} 40.
Rc7 {[%clk 0:00:04.6]} 40... b5 {[%clk 0:00:24.6]} 41. Re7 {[%clk 0:00:04.8]}
41... f6 {[%clk 0:00:24.2]} 42. Rb7 {[%clk 0:00:05.5]} 42... b4 {[%clk
0:00:24.3]} 43. h4 {[%clk 0:00:05.7]} 43... b3 {[%clk 0:00:23.6]} 44. Rb5 {[%clk
0:00:05.6]} 44... b2 {[%clk 0:00:22.2]} 45. Rb7 {[%clk 0:00:05.6]} 45... f5
{[%clk 0:00:21.9]} 46. Rb6+ {[%clk 0:00:06.1]} 46... Kf7 {[%clk 0:00:21.3]} 47.
Rb5 {[%clk 0:00:06.1]} 47... e4 {[%clk 0:00:20.1]} 48. Rxf5+ {[%clk 0:00:06]}
0-1

[Event "Betsys MČR v online bleskovém šachu 2021"]
[Site "Chess.com"]
[Date "2021.04.17"]
[Round "10"]
[White "mayerrs"]
[Black "Z_u_z_i"]
[Result "1-0"]
[WhiteElo "1848"]
[BlackElo "1538"]
[TimeControl "180+1"]
[EndTime "10:41:05 PDT"]
[Termination "Uživatel mayerrs zvítězil matem"]

1. g3 {[%clk 0:03:00.9]} 1... d5 {[%clk 0:02:58.4]} 2. Bg2 {[%clk 0:03:00.8]}
2... Nf6 {[%clk 0:02:57.3]} 3. e3 {[%clk 0:03:01]} 3... c5 {[%clk 0:02:54]} 4.
Ne2 {[%clk 0:03:00.7]} 4... Nc6 {[%clk 0:02:53.6]} 5. b3 {[%clk 0:03:01.1]} 5...
Bg4 {[%clk 0:02:51.4]} 6. Bb2 {[%clk 0:03:00.7]} 6... e6 {[%clk 0:02:50.1]} 7.
a3 {[%clk 0:03:00.3]} 7... Bd6 {[%clk 0:02:48.6]} 8. O-O {[%clk 0:02:59.7]} 8...
O-O {[%clk 0:02:47.9]} 9. d4 {[%clk 0:02:54.9]} 9... cxd4 {[%clk 0:02:44.2]} 10.
exd4 {[%clk 0:02:55.8]} 10... Rc8 {[%clk 0:02:43.2]} 11. Nd2 {[%clk 0:02:52.7]}
11... Re8 {[%clk 0:02:41.1]} 12. Re1 {[%clk 0:02:48.4]} 12... Qd7 {[%clk
0:02:39.9]} 13. c4 {[%clk 0:02:44.4]} 13... dxc4 {[%clk 0:02:27.2]} 14. bxc4
{[%clk 0:02:45.3]} 14... Be7 {[%clk 0:02:26.7]} 15. Rc1 {[%clk 0:02:36.8]} 15...
Red8 {[%clk 0:02:25.5]} 16. Nb3 {[%clk 0:02:21]} 16... b6 {[%clk 0:02:08.7]} 17.
d5 {[%clk 0:02:07]} 17... exd5 {[%clk 0:02:07.5]} 18. Bxf6 {[%clk 0:02:04.4]}
18... Bxf6 {[%clk 0:02:01.8]} 19. cxd5 {[%clk 0:02:02.2]} 19... Ne5 {[%clk
0:01:52.2]} 20. Rxc8 {[%clk 0:01:53.8]} 20... Rxc8 {[%clk 0:01:50.3]} 21. Qd2
{[%clk 0:01:35]} 21... Nf3+ {[%clk 0:01:48.3]} 22. Bxf3 {[%clk 0:01:33.3]} 22...
Bxf3 {[%clk 0:01:48.1]} 23. Nf4 {[%clk 0:01:30.1]} 23... Bg5 {[%clk 0:01:36.7]}
24. Qe3 {[%clk 0:01:24.6]} 24... Bxd5 {[%clk 0:01:26.8]} 25. Qe5 {[%clk
0:00:57]} 25... Bxf4 {[%clk 0:01:17.9]} 26. Qxf4 {[%clk 0:00:37.8]} 26... Bxb3
{[%clk 0:01:17.5]} 27. Qe3 {[%clk 0:00:32.6]} 27... Be6 {[%clk 0:01:16.1]} 28.
h4 {[%clk 0:00:32]} 28... Qc6 {[%clk 0:01:10.4]} 29. Kh2 {[%clk 0:00:20.4]}
29... h6 {[%clk 0:01:09.7]} 30. f4 {[%clk 0:00:19.3]} 30... Qc2+ {[%clk
0:01:06.8]} 31. Re2 {[%clk 0:00:19]} 31... Qc4 {[%clk 0:00:58]} 32. Rd2 {[%clk
0:00:17.1]} 32... Qc5 {[%clk 0:00:53]} 33. Qe2 {[%clk 0:00:11.1]} 33... Qc4
{[%clk 0:00:46.8]} 34. Qe3 {[%clk 0:00:09.1]} 34... Qa4 {[%clk 0:00:43.5]} 35.
Qd3 {[%clk 0:00:01.8]} 35... Qc4 {[%clk 0:00:35.3]} 36. Kg1 {[%clk 0:00:01.8]}
36... Qxd3 {[%clk 0:00:34.4]} 37. Rxd3 {[%clk 0:00:02.7]} 37... Rc1+ {[%clk
0:00:33.8]} 38. Kf2 {[%clk 0:00:03.6]} 38... Rc2+ {[%clk 0:00:32.7]} 39. Ke3
{[%clk 0:00:04.5]} 39... a5 {[%clk 0:00:30.2]} 40. Kd4 {[%clk 0:00:05.4]} 40...
b5 {[%clk 0:00:30]} 41. Ke5 {[%clk 0:00:05.5]} 41... b4 {[%clk 0:00:29.6]} 42.
axb4 {[%clk 0:00:05]} 42... axb4 {[%clk 0:00:29.4]} 43. f5 {[%clk 0:00:05.6]}
43... Ba2 {[%clk 0:00:24.1]} 44. g4 {[%clk 0:00:06.1]} 44... b3 {[%clk
0:00:23.4]} 45. g5 {[%clk 0:00:05.3]} 45... hxg5 {[%clk 0:00:22.4]} 46. hxg5
{[%clk 0:00:05.3]} 46... b2 {[%clk 0:00:21.8]} 47. g6 {[%clk 0:00:05.7]} 47...
fxg6 {[%clk 0:00:20.7]} 48. fxg6 {[%clk 0:00:06.6]} 48... b1=Q {[%clk
0:00:19.4]} 49. Rd8# {[%clk 0:00:07.2]} 1-0

[Event "Betsys MČR v online bleskovém šachu 2021"]
[Site "Chess.com"]
[Date "2021.04.17"]
[Round "10"]
[White "Simago"]
[Black "reflexia64"]
[Result "0-1"]
[WhiteElo "2102"]
[BlackElo "2284"]
[TimeControl "180+1"]
[EndTime "10:41:06 PDT"]
[Termination "Uživatel reflexia64 zvítězil na čas"]

1. e4 {[%clk 0:03:00.9]} 1... c5 {[%clk 0:02:59]} 2. Nf3 {[%clk 0:03:01.1]} 2...
Nc6 {[%clk 0:02:58.9]} 3. c3 {[%clk 0:03:00.4]} 3... d5 {[%clk 0:02:56.1]} 4.
exd5 {[%clk 0:02:59]} 4... Qxd5 {[%clk 0:02:55.9]} 5. d4 {[%clk 0:02:58.8]} 5...
g6 {[%clk 0:02:56.3]} 6. Be2 {[%clk 0:02:55.4]} 6... Bg7 {[%clk 0:02:55.5]} 7.
dxc5 {[%clk 0:02:50.7]} 7... Qxc5 {[%clk 0:02:53.5]} 8. O-O {[%clk 0:02:49.4]}
8... Nf6 {[%clk 0:02:52.3]} 9. Be3 {[%clk 0:02:49]} 9... Qa5 {[%clk 0:02:51.7]}
10. Nbd2 {[%clk 0:02:45.8]} 10... O-O {[%clk 0:02:50.4]} 11. Nc4 {[%clk
0:02:45.5]} 11... Qc7 {[%clk 0:02:49.4]} 12. a4 {[%clk 0:02:38.1]} 12... Be6
{[%clk 0:02:35.1]} 13. Ncd2 {[%clk 0:02:33.4]} 13... Rad8 {[%clk 0:02:31.2]} 14.
Qc2 {[%clk 0:02:26.5]} 14... Nd5 {[%clk 0:02:26.3]} 15. Bg5 {[%clk 0:01:58.9]}
15... Nf4 {[%clk 0:02:24.4]} 16. Bxf4 {[%clk 0:01:50.6]} 16... Qxf4 {[%clk
0:02:23.3]} 17. Rfd1 {[%clk 0:01:27.6]} 17... Rd7 {[%clk 0:02:12.6]} 18. Nf1
{[%clk 0:01:19.4]} 18... Rfd8 {[%clk 0:02:10.6]} 19. Rxd7 {[%clk 0:01:18.5]}
19... Rxd7 {[%clk 0:02:10]} 20. Rd1 {[%clk 0:01:14.2]} 20... Qc7 {[%clk
0:02:04]} 21. Ne3 {[%clk 0:01:10.2]} 21... Ne5 {[%clk 0:01:49.9]} 22. Nd4 {[%clk
0:00:53.8]} 22... Bc4 {[%clk 0:01:09.2]} 23. Nxc4 {[%clk 0:00:44.4]} 23... Nxc4
{[%clk 0:01:07.5]} 24. Bxc4 {[%clk 0:00:34.8]} 24... Qxc4 {[%clk 0:01:06.1]} 25.
Nf3 {[%clk 0:00:24.2]} 25... Qc7 {[%clk 0:00:38.3]} 26. h3 {[%clk 0:00:22.5]}
26... h6 {[%clk 0:00:37.5]} 27. Rd3 {[%clk 0:00:17.6]} 27... Qd8 {[%clk
0:00:34.3]} 28. Rxd7 {[%clk 0:00:16.8]} 28... Qxd7 {[%clk 0:00:34.1]} 29. Qb3
{[%clk 0:00:16.7]} 29... a6 {[%clk 0:00:32.3]} 30. Qc2 {[%clk 0:00:12.3]} 30...
Bf6 {[%clk 0:00:31.2]} 31. Kh2 {[%clk 0:00:09.7]} 31... Kg7 {[%clk 0:00:30.4]}
32. Qe4 {[%clk 0:00:08.1]} 32... Qd6+ {[%clk 0:00:28.5]} 33. Kg1 {[%clk
0:00:03.9]} 33... Qd1+ {[%clk 0:00:27.3]} 34. Kh2 {[%clk 0:00:03.8]} 34... Qc1
{[%clk 0:00:27.1]} 35. Qb4 {[%clk 0:00:01.6]} 35... Qc2 {[%clk 0:00:18.4]} 36.
Qxb7 {[%clk 0:00:01.8]} 36... Qxf2 {[%clk 0:00:18]} 37. Qxa6 {[%clk 0:00:02.1]}
37... Qxb2 {[%clk 0:00:17.7]} 38. c4 {[%clk 0:00:01.9]} 38... g5 {[%clk
0:00:12.8]} 39. Qb5 {[%clk 0:00:02.8]} 39... Qa1 {[%clk 0:00:10.9]} 40. a5
{[%clk 0:00:03.1]} 40... h5 {[%clk 0:00:09.3]} 41. a6 {[%clk 0:00:02.1]} 41...
g4 {[%clk 0:00:08.7]} 0-1

[Event "Betsys MČR v online bleskovém šachu 2021"]
[Site "Chess.com"]
[Date "2021.04.17"]
[Round "10"]
[White "KarelZalesky"]
[Black "Dvacetsekund"]
[Result "0-1"]
[WhiteElo "1904"]
[BlackElo "2195"]
[TimeControl "180+1"]
[EndTime "10:41:08 PDT"]
[Termination "Uživatel Dvacetsekund zvítězil na čas"]

1. e4 {[%clk 0:02:59.4]} 1... c5 {[%clk 0:02:59.7]} 2. Nf3 {[%clk 0:02:57.3]}
2... d6 {[%clk 0:02:59.5]} 3. d4 {[%clk 0:02:56]} 3... cxd4 {[%clk 0:03:00.4]}
4. Nxd4 {[%clk 0:02:55.9]} 4... Nf6 {[%clk 0:03:00.7]} 5. Nc3 {[%clk 0:02:55.5]}
5... g6 {[%clk 0:03:01.4]} 6. Be3 {[%clk 0:02:54.2]} 6... Bg7 {[%clk 0:03:01.6]}
7. Be2 {[%clk 0:02:53.6]} 7... O-O {[%clk 0:03:01.9]} 8. h3 {[%clk 0:02:52.9]}
8... Nc6 {[%clk 0:03:02.1]} 9. O-O {[%clk 0:02:52]} 9... d5 {[%clk 0:03:01.7]}
10. exd5 {[%clk 0:02:51]} 10... Nxd5 {[%clk 0:03:00.7]} 11. Nxd5 {[%clk
0:02:50.3]} 11... Qxd5 {[%clk 0:02:58.3]} 12. Bf3 {[%clk 0:02:47.7]} 12... Qa5
{[%clk 0:02:55.7]} 13. Nxc6 {[%clk 0:02:22.5]} 13... bxc6 {[%clk 0:02:56.6]} 14.
c3 {[%clk 0:02:08.6]} 14... Rd8 {[%clk 0:02:50]} 15. Qc2 {[%clk 0:02:00.7]}
15... Qc7 {[%clk 0:02:49]} 16. Rfd1 {[%clk 0:01:53]} 16... Bf5 {[%clk 0:02:38]}
17. Qa4 {[%clk 0:01:50.7]} 17... Rxd1+ {[%clk 0:01:40.3]} 18. Rxd1 {[%clk
0:01:49]} 18... Rc8 {[%clk 0:01:40.6]} 19. a3 {[%clk 0:01:05.1]} 19... c5 {[%clk
0:01:25.6]} 20. Bf4 {[%clk 0:00:55.1]} 20... e5 {[%clk 0:01:23.6]} 21. Be3
{[%clk 0:00:47.9]} 21... Be6 {[%clk 0:01:08.2]} 22. Bd5 {[%clk 0:00:38.6]} 22...
Bxd5 {[%clk 0:00:56.2]} 23. Rxd5 {[%clk 0:00:38.3]} 23... Bf8 {[%clk 0:00:40.1]}
24. Rd7 {[%clk 0:00:37.8]} 24... Qb6 {[%clk 0:00:33.3]} 25. Qc4 {[%clk
0:00:35.2]} 25... Qf6 {[%clk 0:00:27.8]} 26. b4 {[%clk 0:00:33.8]} 26... Rd8
{[%clk 0:00:18.1]} 27. Rxa7 {[%clk 0:00:29]} 27... Rd1+ {[%clk 0:00:13.7]} 28.
Kh2 {[%clk 0:00:29]} 28... e4 {[%clk 0:00:12.6]} 29. Qxe4 {[%clk 0:00:23]} 29...
Bd6+ {[%clk 0:00:11.9]} 30. g3 {[%clk 0:00:22.3]} 30... Kg7 {[%clk 0:00:06.7]}
31. bxc5 {[%clk 0:00:20.6]} 31... Be5 {[%clk 0:00:06.5]} 32. c4 {[%clk
0:00:13.9]} 32... Rf1 {[%clk 0:00:06.2]} 33. Kg2 {[%clk 0:00:10.2]} 33... Ra1
{[%clk 0:00:05.2]} 34. Bf4 {[%clk 0:00:08.9]} 34... Bd4 {[%clk 0:00:03.7]} 35.
Be3 {[%clk 0:00:08.3]} 35... Be5 {[%clk 0:00:03.8]} 36. Rb7 {[%clk 0:00:07.1]}
36... Ra2 {[%clk 0:00:03.7]} 37. Rb6 {[%clk 0:00:06.3]} 37... Qe7 {[%clk
0:00:01.7]} 38. c6 {[%clk 0:00:05]} 38... Qc7 {[%clk 0:00:01.6]} 39. Rb5 {[%clk
0:00:03.6]} 39... Bxg3 {[%clk 0:00:01.8]} 0-1

[Event "Betsys MČR v online bleskovém šachu 2021"]
[Site "Chess.com"]
[Date "2021.04.17"]
[Round "10"]
[White "TrickyPeat"]
[Black "MichalTrhal"]
[Result "0-1"]
[WhiteElo "2171"]
[BlackElo "1941"]
[TimeControl "180+1"]
[EndTime "10:41:08 PDT"]
[Termination "Uživatel MichalTrhal zvítězil na čas"]

1. e4 {[%clk 0:03:00.9]} 1... d6 {[%clk 0:02:58.4]} 2. d4 {[%clk 0:02:59.7]}
2... Nf6 {[%clk 0:02:58.2]} 3. Nc3 {[%clk 0:02:59.3]} 3... g6 {[%clk 0:02:58.7]}
4. Bg5 {[%clk 0:02:58.7]} 4... Bg7 {[%clk 0:02:58.9]} 5. Qd2 {[%clk 0:02:57.3]}
5... h6 {[%clk 0:02:59]} 6. Bf4 {[%clk 0:02:55.7]} 6... g5 {[%clk 0:02:59.2]} 7.
Bg3 {[%clk 0:02:50.1]} 7... c5 {[%clk 0:02:55.6]} 8. dxc5 {[%clk 0:02:45.8]}
8... O-O {[%clk 0:02:43]} 9. cxd6 {[%clk 0:02:43.7]} 9... Nc6 {[%clk 0:02:42.9]}
10. dxe7 {[%clk 0:02:36.1]} 10... Qxd2+ {[%clk 0:02:31.3]} 11. Kxd2 {[%clk
0:02:34.8]} 11... Re8 {[%clk 0:02:27.6]} 12. Re1 {[%clk 0:01:59.8]} 12... Rxe7
{[%clk 0:02:25.5]} 13. h4 {[%clk 0:01:53.9]} 13... Be6 {[%clk 0:02:21.1]} 14.
hxg5 {[%clk 0:01:50.9]} 14... hxg5 {[%clk 0:02:21.1]} 15. Nf3 {[%clk 0:01:49.7]}
15... Rd8+ {[%clk 0:02:14.4]} 16. Kc1 {[%clk 0:01:49.3]} 16... g4 {[%clk
0:02:10]} 17. Ng5 {[%clk 0:01:46.2]} 17... Red7 {[%clk 0:01:51.5]} 18. Nxe6
{[%clk 0:01:43.1]} 18... fxe6 {[%clk 0:01:51.1]} 19. Bc4 {[%clk 0:01:42.2]}
19... Kf7 {[%clk 0:01:49.6]} 20. Rd1 {[%clk 0:01:37]} 20... Nd4 {[%clk
0:01:49.4]} 21. Bh4 {[%clk 0:01:20.6]} 21... a6 {[%clk 0:01:47.7]} 22. e5 {[%clk
0:01:18.4]} 22... b5 {[%clk 0:01:14]} 23. Bb3 {[%clk 0:01:14.4]} 23... b4 {[%clk
0:01:13.6]} 24. exf6 {[%clk 0:01:09.8]} 24... bxc3 {[%clk 0:01:08]} 25. Rxd4
{[%clk 0:00:50.9]} 25... Rxd4 {[%clk 0:01:06.5]} 26. bxc3 {[%clk 0:00:43.7]}
26... Bh6+ {[%clk 0:01:05.4]} 27. Kb2 {[%clk 0:00:43]} 27... Rd1 {[%clk
0:01:04.3]} 28. Rxd1 {[%clk 0:00:31]} 28... Rxd1 {[%clk 0:01:05.2]} 29. c4
{[%clk 0:00:30.1]} 29... Bf4 {[%clk 0:00:57.2]} 30. c5 {[%clk 0:00:23.8]} 30...
Rd8 {[%clk 0:00:50.6]} 31. Kc3 {[%clk 0:00:18.7]} 31... a5 {[%clk 0:00:31.7]}
32. Kc4 {[%clk 0:00:16.2]} 32... Rh8 {[%clk 0:00:25.4]} 33. g3 {[%clk
0:00:13.1]} 33... Be5 {[%clk 0:00:23.4]} 34. c6 {[%clk 0:00:12]} 34... Rc8
{[%clk 0:00:20.2]} 35. Kc5 {[%clk 0:00:10.1]} 35... Bc7 {[%clk 0:00:19.2]} 36.
Bc4 {[%clk 0:00:08]} 36... Rd8 {[%clk 0:00:17.1]} 37. Kb5 {[%clk 0:00:04.9]}
37... Rd2 {[%clk 0:00:16.7]} 38. Bd3 {[%clk 0:00:02.5]} 38... Rxf2 {[%clk
0:00:16.1]} 39. Ka6 {[%clk 0:00:02.2]} 39... Ke8 {[%clk 0:00:10.9]} 40. Kb7
{[%clk 0:00:02.5]} 40... Bd8 {[%clk 0:00:09.8]} 41. a4 {[%clk 0:00:02.1]} 41...
Rf1 {[%clk 0:00:08.6]} 0-1